[Event "Late-Titled-Tuesday-Blitz-June-18-2024"]
[Site "Chess.com"]
[Date "2024.06.18"]
[Round "2"]
[White "Hrant_ChessMood"]
[Black "ArmanGhevondyanchess"]
[Result "1-0"]
[WhiteElo "2894"]
[BlackElo "2593"]
[TimeControl "180+1"]
[EndTime "14:20:01 PDT"]
[Termination "Hrant_ChessMood won by resignation"]

1. c4 {[%clk 0:03:00.9]} 1... Nf6 {[%clk 0:02:59.6]} 2. g3 {[%clk 0:02:59.5]}
2... c5 {[%clk 0:02:57.7]} 3. Bg2 {[%clk 0:02:59]} 3... g6 {[%clk 0:02:57]} 4.
Nc3 {[%clk 0:02:58]} 4... Bg7 {[%clk 0:02:56.4]} 5. Nf3 {[%clk 0:02:58.4]} 5...
O-O {[%clk 0:02:55.3]} 6. d4 {[%clk 0:02:58.7]} 6... cxd4 {[%clk 0:02:55.4]} 7.
Nxd4 {[%clk 0:02:59.6]} 7... Nc6 {[%clk 0:02:55.7]} 8. O-O {[%clk 0:02:59.9]}
8... Nxd4 {[%clk 0:02:52.5]} 9. Qxd4 {[%clk 0:02:59.5]} 9... d6 {[%clk
0:02:53.1]} 10. Qd3 {[%clk 0:02:56.1]} 10... Rb8 {[%clk 0:02:21.3]} 11. Be3
{[%clk 0:02:53]} 11... a6 {[%clk 0:02:21.2]} 12. Ba7 {[%clk 0:02:52.1]} 12...
Ra8 {[%clk 0:02:20.5]} 13. Bd4 {[%clk 0:02:52.3]} 13... Bf5 {[%clk 0:02:05]} 14.
Qd2 {[%clk 0:02:44.3]} 14... Rb8 {[%clk 0:01:49.7]} 15. a4 {[%clk 0:02:37.9]}
15... Qc8 {[%clk 0:01:45.2]} 16. b3 {[%clk 0:02:28.8]} 16... Bh3 {[%clk
0:01:44.7]} 17. Bxf6 {[%clk 0:02:19.5]} 17... Bxf6 {[%clk 0:01:34.1]} 18. Nd5
{[%clk 0:02:18.4]} 18... Bxg2 {[%clk 0:01:34]} 19. Nxf6+ {[%clk 0:02:18.2]}
19... exf6 {[%clk 0:01:34.1]} 20. Kxg2 {[%clk 0:02:18.5]} 20... Qc6+ {[%clk
0:01:33]} 21. Kg1 {[%clk 0:02:16.2]} 21... b5 {[%clk 0:01:27]} 22. cxb5 {[%clk
0:02:15.7]} 22... axb5 {[%clk 0:01:27.9]} 23. a5 {[%clk 0:02:16.4]} 23... b4
{[%clk 0:01:28.4]} 24. Rfd1 {[%clk 0:02:03.2]} 24... Rfd8 {[%clk 0:01:27.8]} 25.
Ra4 {[%clk 0:01:44.6]} 25... Qc3 {[%clk 0:01:21.8]} 26. Qd5 {[%clk 0:01:36.7]}
26... Qc5 {[%clk 0:01:18.3]} 27. a6 {[%clk 0:01:32.5]} 27... Qxd5 {[%clk
0:01:12.2]} 28. Rxd5 {[%clk 0:01:33.4]} 28... Rd7 {[%clk 0:01:11.3]} 29. a7
{[%clk 0:01:21]} 29... Ra8 {[%clk 0:01:09.5]} 30. Rda5 {[%clk 0:01:21.9]} 30...
Rb7 {[%clk 0:01:07.7]} 31. Kg2 {[%clk 0:01:21.5]} 31... Kf8 {[%clk 0:01:03]} 32.
Kf3 {[%clk 0:01:21.9]} 32... Ke7 {[%clk 0:01:03.2]} 33. Ke4 {[%clk 0:01:22.5]}
33... Ke6 {[%clk 0:01:03.3]} 34. Kd4 {[%clk 0:01:22.4]} 34... f5 {[%clk
0:00:57.9]} 35. Ra6 {[%clk 0:01:20.2]} 35... h5 {[%clk 0:00:52.8]} 36. h4 {[%clk
0:01:17.2]} 36... Rc7 {[%clk 0:00:47.4]} 37. R4a5 {[%clk 0:01:07.6]} 37... f6
{[%clk 0:00:38.3]} 38. e3 {[%clk 0:00:52.7]} 38... Rb7 {[%clk 0:00:36.4]} 39.
Ra4 {[%clk 0:00:26]} 39... Rc7 {[%clk 0:00:35]} 40. Ra2 {[%clk 0:00:21.1]} 40...
Rb7 {[%clk 0:00:34.4]} 41. Kd3 {[%clk 0:00:21.2]} 41... Rc7 {[%clk 0:00:33.1]}
42. Kd2 {[%clk 0:00:21.8]} 42... Rb7 {[%clk 0:00:30.5]} 43. R2a4 {[%clk
0:00:21.5]} 43... Rc7 {[%clk 0:00:30.4]} 44. Rxb4 {[%clk 0:00:21.7]} 44... Raxa7
{[%clk 0:00:28]} 45. Rxa7 {[%clk 0:00:22.6]} 45... Rxa7 {[%clk 0:00:28.9]} 46.
Ra4 {[%clk 0:00:23.5]} 46... Rb7 {[%clk 0:00:26.5]} 47. b4 {[%clk 0:00:23.4]}
47... g5 {[%clk 0:00:20.6]} 48. Kc3 {[%clk 0:00:20.7]} 48... Ke5 {[%clk
0:00:18]} 49. f3 {[%clk 0:00:07.6]} 49... f4 {[%clk 0:00:15.6]} 50. Ra5+ {[%clk
0:00:02.8]} 50... d5 {[%clk 0:00:16.2]} 51. exf4+ {[%clk 0:00:03.2]} 51... gxf4
{[%clk 0:00:17.1]} 52. gxf4+ {[%clk 0:00:03.7]} 52... Kxf4 {[%clk 0:00:17.7]}
53. Rxd5 {[%clk 0:00:04]} 53... Kxf3 {[%clk 0:00:15.5]} 54. Rxh5 {[%clk
0:00:04.2]} 54... Kg4 {[%clk 0:00:16.1]} 55. Rh8 {[%clk 0:00:04.5]} 55... f5
{[%clk 0:00:15.1]} 56. h5 {[%clk 0:00:05.2]} 56... f4 {[%clk 0:00:15.2]} 57. h6
{[%clk 0:00:05.7]} 57... Kh5 {[%clk 0:00:13.2]} 58. h7 {[%clk 0:00:04.6]} 58...
Kh6 {[%clk 0:00:11.3]} 59. Rf8 {[%clk 0:00:03.9]} 59... Kxh7 {[%clk 0:00:11]}
60. Rxf4 {[%clk 0:00:04.2]} 60... Kg6 {[%clk 0:00:11.3]} 61. Kc4 {[%clk
0:00:04.8]} 61... Kg5 {[%clk 0:00:11.9]} 62. Rf1 {[%clk 0:00:04.7]} 62... Rc7+
{[%clk 0:00:11.7]} 63. Kb5 {[%clk 0:00:05]} 63... Rc1 {[%clk 0:00:12.4]} 64.
Rxc1 {[%clk 0:00:04.4]} 1-0

[Event "Late-Titled-Tuesday-Blitz-June-18-2024"]
[Site "Chess.com"]
[Date "2024.06.18"]
[Round "2"]
[White "nitpicker"]
[Black "Sanyura"]
[Result "1/2-1/2"]
[WhiteElo "2350"]
[BlackElo "2527"]
[TimeControl "180+1"]
[EndTime "14:20:01 PDT"]
[Termination "Game drawn - insufficient material"]

1. d4 {[%clk 0:03:00.9]} 1... Nf6 {[%clk 0:02:58.6]} 2. c4 {[%clk 0:03:00.9]}
2... g6 {[%clk 0:02:59]} 3. Nc3 {[%clk 0:03:00.3]} 3... Bg7 {[%clk 0:02:59.6]}
4. e4 {[%clk 0:02:59.7]} 4... d6 {[%clk 0:03:00.1]} 5. Be2 {[%clk 0:02:59.5]}
5... O-O {[%clk 0:03:00.7]} 6. Nf3 {[%clk 0:02:59.7]} 6... e5 {[%clk 0:03:01.2]}
7. O-O {[%clk 0:02:59.6]} 7... Nc6 {[%clk 0:03:01.8]} 8. d5 {[%clk 0:02:59.1]}
8... Ne7 {[%clk 0:03:02.4]} 9. a4 {[%clk 0:02:59.3]} 9... Nh5 {[%clk 0:03:02.2]}
10. g3 {[%clk 0:02:55.9]} 10... a5 {[%clk 0:03:01.6]} 11. Ne1 {[%clk 0:02:42.4]}
11... f5 {[%clk 0:03:00.7]} 12. Bxh5 {[%clk 0:02:37.5]} 12... gxh5 {[%clk
0:03:01.6]} 13. Qxh5 {[%clk 0:02:36.9]} 13... Ng6 {[%clk 0:03:01.1]} 14. Qe2
{[%clk 0:02:09.3]} 14... fxe4 {[%clk 0:02:58.2]} 15. Nxe4 {[%clk 0:02:06.4]}
15... Bf5 {[%clk 0:02:56.6]} 16. f3 {[%clk 0:02:01]} 16... Qd7 {[%clk
0:02:55.9]} 17. Nd3 {[%clk 0:01:59.7]} 17... h6 {[%clk 0:02:53]} 18. Rd1 {[%clk
0:01:53]} 18... Rf7 {[%clk 0:02:53.3]} 19. c5 {[%clk 0:01:40.6]} 19... Raf8
{[%clk 0:02:53]} 20. cxd6 {[%clk 0:01:36.3]} 20... cxd6 {[%clk 0:02:53.9]} 21.
b3 {[%clk 0:01:14.8]} 21... Ne7 {[%clk 0:02:53]} 22. Ba3 {[%clk 0:01:07.5]}
22... Nxd5 {[%clk 0:02:29]} 23. Rac1 {[%clk 0:00:49.3]} 23... Bxe4 {[%clk
0:02:21.3]} 24. fxe4 {[%clk 0:00:48.8]} 24... Ne7 {[%clk 0:02:02.2]} 25. Nb2
{[%clk 0:00:42.9]} 25... Rf3 {[%clk 0:01:49.7]} 26. Bxd6 {[%clk 0:00:35.3]}
26... Qg4 {[%clk 0:01:42.7]} 27. Rc2 {[%clk 0:00:24.8]} 27... Nc6 {[%clk
0:01:13.7]} 28. Bxf8 {[%clk 0:00:15.6]} 28... Bxf8 {[%clk 0:01:14.6]} 29. Kg2
{[%clk 0:00:14.6]} 29... Rf4 {[%clk 0:01:08.8]} 30. Qxg4+ {[%clk 0:00:11.9]}
30... Rxg4 {[%clk 0:01:09.7]} 31. Kf3 {[%clk 0:00:11.5]} 31... Rg6 {[%clk
0:01:08.7]} 32. Rcd2 {[%clk 0:00:09.3]} 32... Bc5 {[%clk 0:01:04.2]} 33. Nd3
{[%clk 0:00:08.4]} 33... Bd4 {[%clk 0:01:01.2]} 34. Nf2 {[%clk 0:00:08]} 34...
Rd6 {[%clk 0:00:45.8]} 35. Kg2 {[%clk 0:00:07.9]} 35... Kg7 {[%clk 0:00:45.3]}
36. Ng4 {[%clk 0:00:07.9]} 36... Rg6 {[%clk 0:00:40.4]} 37. Nf2 {[%clk
0:00:07.4]} 37... Rd6 {[%clk 0:00:38.9]} 38. Ng4 {[%clk 0:00:07.7]} 38... Re6
{[%clk 0:00:36.2]} 39. h4 {[%clk 0:00:07]} 39... h5 {[%clk 0:00:35.5]} 40. Nh2
{[%clk 0:00:07.2]} 40... Rg6 {[%clk 0:00:17.2]} 41. Nf3 {[%clk 0:00:06.7]} 41...
Be3 {[%clk 0:00:17.4]} 42. Rd7+ {[%clk 0:00:05.7]} 42... Kh6 {[%clk 0:00:17.8]}
43. Rxb7 {[%clk 0:00:04.6]} 43... Nd4 {[%clk 0:00:17.8]} 44. Nxd4 {[%clk
0:00:04]} 44... exd4 {[%clk 0:00:18.7]} 45. Rd3 {[%clk 0:00:03.5]} 45... Rc6
{[%clk 0:00:18.1]} 46. Rd7 {[%clk 0:00:02.5]} 46... Rc2+ {[%clk 0:00:18.2]} 47.
Kf1 {[%clk 0:00:02.5]} 47... Rf2+ {[%clk 0:00:16]} 48. Ke1 {[%clk 0:00:02.5]}
48... Rb2 {[%clk 0:00:16.2]} 49. R7xd4 {[%clk 0:00:02.3]} 49... Bxd4 {[%clk
0:00:16.3]} 50. Rxd4 {[%clk 0:00:03.1]} 50... Rxb3 {[%clk 0:00:17]} 51. Rd6+
{[%clk 0:00:03.6]} 51... Kg7 {[%clk 0:00:16.8]} 52. Rd7+ {[%clk 0:00:04.1]}
52... Kf6 {[%clk 0:00:16.9]} 53. Rd5 {[%clk 0:00:04.7]} 53... Rxg3 {[%clk
0:00:16.3]} 54. Rxh5 {[%clk 0:00:04.8]} 54... Rg4 {[%clk 0:00:16.9]} 55. Rxa5
{[%clk 0:00:04.4]} 55... Rxe4+ {[%clk 0:00:17.4]} 56. Kd2 {[%clk 0:00:01]} 56...
Rxh4 {[%clk 0:00:18.3]} 57. Kc3 {[%clk 0:00:01]} 57... Ke6 {[%clk 0:00:19]} 58.
Kb3 {[%clk 0:00:01.1]} 58... Kd6 {[%clk 0:00:19.6]} 59. Ra6+ {[%clk 0:00:01.4]}
59... Kc5 {[%clk 0:00:19.9]} 60. Ra8 {[%clk 0:00:01.2]} 60... Kb6 {[%clk
0:00:19.8]} 61. Rb8+ {[%clk 0:00:01.3]} 61... Ka5 {[%clk 0:00:19.6]} 62. Rb5+
{[%clk 0:00:01.2]} 62... Ka6 {[%clk 0:00:20]} 63. Rb4 {[%clk 0:00:01.6]} 63...
Rh1 {[%clk 0:00:19.7]} 64. Kc4 {[%clk 0:00:02.1]} 64... Ka5 {[%clk 0:00:18.8]}
65. Rb5+ {[%clk 0:00:01.9]} 65... Kxa4 {[%clk 0:00:19.3]} 66. Re5 {[%clk
0:00:02.4]} 66... Rc1+ {[%clk 0:00:19.5]} 67. Kd5 {[%clk 0:00:02.6]} 67... Kb4
{[%clk 0:00:20.1]} 68. Ke6 {[%clk 0:00:03.1]} 68... Rc4 {[%clk 0:00:19.2]} 69.
Kf5 {[%clk 0:00:03.1]} 69... Kc3 {[%clk 0:00:19.6]} 70. Re4 {[%clk 0:00:02.9]}
70... Rxe4 {[%clk 0:00:20.2]} 71. Kxe4 {[%clk 0:00:02.8]} 1/2-1/2

[Event "Late-Titled-Tuesday-Blitz-June-18-2024"]
[Site "Chess.com"]
[Date "2024.06.18"]
[Round "2"]
[White "urano56"]
[Black "Stanbad1"]
[Result "1/2-1/2"]
[WhiteElo "2397"]
[BlackElo "2704"]
[TimeControl "180+1"]
[EndTime "14:20:09 PDT"]
[Termination "Game drawn by repetition"]

1. d4 {[%clk 0:03:00.9]} 1... Nf6 {[%clk 0:02:59.9]} 2. c4 {[%clk 0:02:58.5]}
2... c5 {[%clk 0:02:59.5]} 3. d5 {[%clk 0:02:57.9]} 3... b5 {[%clk 0:03:00]} 4.
cxb5 {[%clk 0:02:57.7]} 4... a6 {[%clk 0:03:00.5]} 5. Nc3 {[%clk 0:02:53.2]}
5... axb5 {[%clk 0:02:58.5]} 6. Nxb5 {[%clk 0:02:52.5]} 6... d6 {[%clk
0:02:57.2]} 7. e3 {[%clk 0:02:51.6]} 7... g6 {[%clk 0:02:57.3]} 8. Nf3 {[%clk
0:02:51.2]} 8... Bg7 {[%clk 0:02:57]} 9. Bd3 {[%clk 0:02:49.1]} 9... O-O {[%clk
0:02:57]} 10. Nc3 {[%clk 0:02:43.7]} 10... Na6 {[%clk 0:02:56.8]} 11. O-O {[%clk
0:02:41.9]} 11... Nc7 {[%clk 0:02:56.6]} 12. e4 {[%clk 0:02:39.6]} 12... e6
{[%clk 0:02:56.8]} 13. dxe6 {[%clk 0:02:38.6]} 13... Bxe6 {[%clk 0:02:56.9]} 14.
Bg5 {[%clk 0:02:30.1]} 14... Qb8 {[%clk 0:02:49.5]} 15. Qd2 {[%clk 0:02:28.6]}
15... d5 {[%clk 0:02:49.2]} 16. e5 {[%clk 0:02:05.5]} 16... Nd7 {[%clk 0:02:47]}
17. Rfe1 {[%clk 0:02:02.5]} 17... d4 {[%clk 0:02:35]} 18. Ne4 {[%clk 0:01:54.7]}
18... Nd5 {[%clk 0:02:34.4]} 19. Rac1 {[%clk 0:01:39.2]} 19... Rc8 {[%clk
0:02:32.7]} 20. Nd6 {[%clk 0:01:36.3]} 20... Rc7 {[%clk 0:02:23]} 21. Nc4 {[%clk
0:01:35.7]} 21... Rxa2 {[%clk 0:02:19]} 22. Bh6 {[%clk 0:01:31.8]} 22... Nb4
{[%clk 0:02:13.9]} 23. Bxg7 {[%clk 0:01:26.7]} 23... Kxg7 {[%clk 0:02:12.9]} 24.
Bb1 {[%clk 0:01:26.5]} 24... Ra6 {[%clk 0:02:10.3]} 25. h4 {[%clk 0:01:16.4]}
25... Nb6 {[%clk 0:02:07.8]} 26. Nd6 {[%clk 0:01:12.9]} 26... N6d5 {[%clk
0:02:03.5]} 27. h5 {[%clk 0:01:05.8]} 27... Qd8 {[%clk 0:01:52.5]} 28. Nxd4
{[%clk 0:00:48.5]} 28... cxd4 {[%clk 0:01:45.2]} 29. Rxc7 {[%clk 0:00:47.7]}
29... Nxc7 {[%clk 0:01:23.3]} 30. Qxb4 {[%clk 0:00:40.6]} 30... Nd5 {[%clk
0:01:19]} 31. Qxd4 {[%clk 0:00:29.8]} 31... Qg5 {[%clk 0:01:18.5]} 32. hxg6
{[%clk 0:00:24.4]} 32... hxg6 {[%clk 0:01:12.7]} 33. Be4 {[%clk 0:00:22.6]}
33... Nf4 {[%clk 0:01:01.4]} 34. Ne8+ {[%clk 0:00:19.9]} 34... Kf8 {[%clk
0:00:58.7]} 35. Nf6 {[%clk 0:00:20.2]} 35... Kg7 {[%clk 0:00:51.4]} 36. Bf3
{[%clk 0:00:16.7]} 36... Qh6 {[%clk 0:00:14.9]} 37. Qd8 {[%clk 0:00:14.1]} 37...
Qh8 {[%clk 0:00:15]} 38. Ne8+ {[%clk 0:00:14.5]} 38... Kh7 {[%clk 0:00:13.9]}
39. Qh4+ {[%clk 0:00:09.7]} 39... Nh5 {[%clk 0:00:14.3]} 40. Nf6+ {[%clk
0:00:07.3]} 40... Kg7 {[%clk 0:00:13.9]} 41. Bxh5 {[%clk 0:00:07.5]} 41... gxh5
{[%clk 0:00:14.8]} 42. Qg5+ {[%clk 0:00:07.6]} 42... Kf8 {[%clk 0:00:14.8]} 43.
Rd1 {[%clk 0:00:07.6]} 43... Ra8 {[%clk 0:00:14.5]} 44. f3 {[%clk 0:00:04.8]}
44... h4 {[%clk 0:00:14.5]} 45. Kh2 {[%clk 0:00:04.7]} 45... h3 {[%clk
0:00:14.6]} 46. g4 {[%clk 0:00:05.1]} 46... Qg7 {[%clk 0:00:13.9]} 47. Qxg7+
{[%clk 0:00:03.7]} 47... Kxg7 {[%clk 0:00:14.8]} 48. Nh5+ {[%clk 0:00:04.3]}
48... Kg6 {[%clk 0:00:15.4]} 49. Nf4+ {[%clk 0:00:05.2]} 49... Kg5 {[%clk
0:00:16]} 50. Nxe6+ {[%clk 0:00:05.7]} 50... fxe6 {[%clk 0:00:16.9]} 51. Kxh3
{[%clk 0:00:05.6]} 51... Rb8 {[%clk 0:00:16.3]} 52. Rd2 {[%clk 0:00:05.4]} 52...
Kf4 {[%clk 0:00:15.9]} 53. Rd3 {[%clk 0:00:03.5]} 53... Rxb2 {[%clk 0:00:14.9]}
54. g5 {[%clk 0:00:03.5]} 54... Kxg5 {[%clk 0:00:14.7]} 55. Kg3 {[%clk 0:00:04]}
55... Kf5 {[%clk 0:00:15.3]} 56. f4 {[%clk 0:00:04.6]} 56... Re2 {[%clk
0:00:15.5]} 57. Rf3 {[%clk 0:00:05.1]} 57... Ra2 {[%clk 0:00:13.5]} 58. Rb3
{[%clk 0:00:05]} 58... Rc2 {[%clk 0:00:13.5]} 59. Rf3 {[%clk 0:00:04.1]} 59...
Ra2 {[%clk 0:00:13.5]} 60. Re3 {[%clk 0:00:04.6]} 60... Rb2 {[%clk 0:00:13.8]}
61. Rf3 {[%clk 0:00:05.1]} 61... Re2 {[%clk 0:00:13.7]} 62. Rd3 {[%clk
0:00:04.9]} 62... Rc2 {[%clk 0:00:13.8]} 63. Kf3 {[%clk 0:00:05.2]} 63... Rh2
{[%clk 0:00:13.8]} 64. Kg3 {[%clk 0:00:05.1]} 64... Re2 {[%clk 0:00:13.6]} 65.
Kf3 {[%clk 0:00:05.5]} 65... Ra2 {[%clk 0:00:13.6]} 66. Kg3 {[%clk 0:00:05.2]}
66... Ra4 {[%clk 0:00:12.8]} 67. Rf3 {[%clk 0:00:06.1]} 67... Ra2 {[%clk
0:00:12.9]} 1/2-1/2

[Event "Late-Titled-Tuesday-Blitz-June-18-2024"]
[Site "Chess.com"]
[Date "2024.06.18"]
[Round "2"]
[White "rasmussvane"]
[Black "pompey831"]
[Result "1-0"]
[WhiteElo "2979"]
[BlackElo "2517"]
[TimeControl "180+1"]
[EndTime "14:20:10 PDT"]
[Termination "rasmussvane won on time"]

1. Nf3 {[%clk 0:03:00.9]} 1... f5 {[%clk 0:02:57.5]} 2. d3 {[%clk 0:02:53.5]}
2... d6 {[%clk 0:02:55.6]} 3. e4 {[%clk 0:02:53.4]} 3... Nc6 {[%clk 0:02:54.9]}
4. exf5 {[%clk 0:02:52.3]} 4... Bxf5 {[%clk 0:02:53.8]} 5. d4 {[%clk 0:02:52.4]}
5... Nf6 {[%clk 0:02:41.8]} 6. Bb5 {[%clk 0:02:50]} 6... a6 {[%clk 0:02:40.4]}
7. Ba4 {[%clk 0:02:49.7]} 7... b5 {[%clk 0:02:38.1]} 8. Bb3 {[%clk 0:02:49.3]}
8... Na5 {[%clk 0:02:38.2]} 9. O-O {[%clk 0:02:48.2]} 9... g6 {[%clk 0:02:36.9]}
10. Re1 {[%clk 0:02:34.4]} 10... Nxb3 {[%clk 0:02:36.2]} 11. axb3 {[%clk
0:02:34.4]} 11... Bg7 {[%clk 0:02:36.8]} 12. h3 {[%clk 0:02:30.7]} 12... O-O
{[%clk 0:02:36.4]} 13. Nbd2 {[%clk 0:02:30.4]} 13... Qd7 {[%clk 0:02:33.5]} 14.
Nf1 {[%clk 0:02:25.5]} 14... h6 {[%clk 0:02:30.2]} 15. Ng3 {[%clk 0:02:17.2]}
15... Rf7 {[%clk 0:02:07.9]} 16. Nxf5 {[%clk 0:02:10.6]} 16... gxf5 {[%clk
0:02:02.6]} 17. d5 {[%clk 0:01:49.9]} 17... c6 {[%clk 0:01:59.5]} 18. dxc6
{[%clk 0:01:46.7]} 18... Qxc6 {[%clk 0:01:58.9]} 19. Nd4 {[%clk 0:01:46.8]}
19... Qd5 {[%clk 0:01:58.5]} 20. Ne6 {[%clk 0:01:43.8]} 20... Qxd1 {[%clk
0:01:57.3]} 21. Rxd1 {[%clk 0:01:44.7]} 21... Nd7 {[%clk 0:01:43.5]} 22. c3
{[%clk 0:01:37]} 22... Nc5 {[%clk 0:01:40.7]} 23. Nxc5 {[%clk 0:01:33.3]} 23...
dxc5 {[%clk 0:01:40.3]} 24. Be3 {[%clk 0:01:33.3]} 24... Rc8 {[%clk 0:01:36.4]}
25. Rxa6 {[%clk 0:01:31.6]} 25... f4 {[%clk 0:01:35.7]} 26. Bc1 {[%clk
0:01:28.8]} 26... b4 {[%clk 0:01:33.5]} 27. Rd3 {[%clk 0:01:16.2]} 27... Rf5
{[%clk 0:01:26.8]} 28. Bd2 {[%clk 0:01:10.8]} 28... Rb8 {[%clk 0:01:16.1]} 29.
cxb4 {[%clk 0:00:57.8]} 29... cxb4 {[%clk 0:01:14.7]} 30. Ra4 {[%clk 0:00:58]}
30... Bxb2 {[%clk 0:01:09.4]} 31. Rxb4 {[%clk 0:00:56.4]} 31... Rxb4 {[%clk
0:01:08.6]} 32. Bxb4 {[%clk 0:00:57.3]} 32... Kf7 {[%clk 0:01:08]} 33. Kf1
{[%clk 0:00:48.5]} 33... Rb5 {[%clk 0:01:05.8]} 34. Bd2 {[%clk 0:00:42.6]} 34...
e5 {[%clk 0:01:04.9]} 35. f3 {[%clk 0:00:42.3]} 35... Ke6 {[%clk 0:01:02.1]} 36.
Ke2 {[%clk 0:00:40.5]} 36... Rb7 {[%clk 0:00:59.5]} 37. b4 {[%clk 0:00:39.3]}
37... h5 {[%clk 0:00:52.4]} 38. Rd8 {[%clk 0:00:29.3]} 38... Rg7 {[%clk
0:00:50.8]} 39. Kf1 {[%clk 0:00:26.9]} 39... Rc7 {[%clk 0:00:49.1]} 40. Ke2
{[%clk 0:00:20]} 40... Rg7 {[%clk 0:00:47.7]} 41. Kf1 {[%clk 0:00:19.5]} 41...
Rc7 {[%clk 0:00:46.8]} 42. Rd3 {[%clk 0:00:17.2]} 42... Rc8 {[%clk 0:00:39.6]}
43. Rb3 {[%clk 0:00:13.6]} 43... Bd4 {[%clk 0:00:38]} 44. b5 {[%clk 0:00:10.8]}
44... Kd5 {[%clk 0:00:35.6]} 45. b6 {[%clk 0:00:09.5]} 45... Rb8 {[%clk
0:00:34.6]} 46. b7 {[%clk 0:00:09.9]} 46... Kc6 {[%clk 0:00:32.8]} 47. Ke2
{[%clk 0:00:10.2]} 47... Bb6 {[%clk 0:00:27.7]} 48. Kd3 {[%clk 0:00:04.8]} 48...
Rxb7 {[%clk 0:00:27]} 49. Ke4 {[%clk 0:00:05.3]} 49... Rd7 {[%clk 0:00:24.4]}
50. Bc3 {[%clk 0:00:04.4]} 50... Bc7 {[%clk 0:00:22.5]} 51. Rb2 {[%clk
0:00:02.8]} 51... Rg7 {[%clk 0:00:21.6]} 52. Kf5 {[%clk 0:00:02.2]} 52... Kd5
{[%clk 0:00:16.5]} 53. Rd2+ {[%clk 0:00:02.2]} 53... Kc4 {[%clk 0:00:11.1]} 54.
Bxe5 {[%clk 0:00:03.1]} 54... Bxe5 {[%clk 0:00:10.4]} 55. Kxe5 {[%clk
0:00:03.6]} 55... Kc3 {[%clk 0:00:09.4]} 56. Ra2 {[%clk 0:00:03.1]} 56... Rf7
{[%clk 0:00:08.5]} 57. h4 {[%clk 0:00:02.3]} 57... Kd3 {[%clk 0:00:07.4]} 58.
Ra3+ {[%clk 0:00:01.6]} 58... Ke2 {[%clk 0:00:06.8]} 59. Ke4 {[%clk 0:00:02.5]}
59... Kf2 {[%clk 0:00:06.4]} 60. Ra5 {[%clk 0:00:02.2]} 60... Kxg2 {[%clk
0:00:05.4]} 61. Rxh5 {[%clk 0:00:02.5]} 61... Kg3 {[%clk 0:00:04.9]} 62. Re5
{[%clk 0:00:01.4]} 62... Kxh4 {[%clk 0:00:04.1]} 63. Rf5 {[%clk 0:00:01.6]}
63... Rc7 {[%clk 0:00:02.7]} 64. Kxf4 {[%clk 0:00:02.1]} 64... Rc4+ {[%clk
0:00:02.8]} 65. Ke3 {[%clk 0:00:02.8]} 65... Ra4 {[%clk 0:00:01]} 66. Kf2 {[%clk
0:00:03]} 66... Rb4 {[%clk 0:00:01.4]} 67. Ke3 {[%clk 0:00:03.3]} 67... Ra4
{[%clk 0:00:02]} 68. Rf4+ {[%clk 0:00:03.9]} 1-0